fUST/lending_fUST_20250926
["ID","MTS","AMOUNT","RATE_DAILY","PERIOD"]
[387788792,1758866675275,-492.85063556,0.00041643,120]
[387788793,1758866675322,-480.0,0.00041643,21]
[387788794,1758866675368,-480.0,0.00041643,120]
[387788795,1758866675415,-480.0,0.00041643,120]
[387788796,1758866675465,-482.18,0.00041643,120]
[387788797,1758866675513,-480.0,0.00041643,120]
[387788798,1758866675561,-3219.78,0.00041643,120]
[387788799,1758866675606,-480.0,0.00041643,120]
[387788800,1758866675650,-480.0,0.00041643,120]
[387788801,1758866675699,-1580.99,0.00041643,120]
[387788802,1758866675745,-480.0,0.00041643,120]
[387788803,1758866675791,-565.43,0.00041643,120]
[387788804,1758866675839,-638.78,0.00041643,120]
[387788805,1758866675884,-519.92,0.00041643,120]
[387788806,1758866675928,-480.0,0.00041643,120]
[387788807,1758866675976,-200.0,0.00041792,120]
[387788808,1758866676022,-493.56401731,0.00041917,120]
[387788809,1758866676065,-480.0,0.00041917,120]
[387788810,1758866676109,-480.0,0.00041917,120]
[387788811,1758866676154,-480.0,0.00041917,120]
[387788812,1758866676202,-510.36523383,0.00041917,120]
[387788813,1758866676247,-480.0,0.00041917,120]
[387788814,1758866676292,-480.0,0.00041917,120]
[387788815,1758866676339,-581.13229511,0.00041917,120]
[387788816,1758866676385,-480.0,0.00041917,120]
[387788817,1758866676432,-449.62762343,0.00041917,120]
[387788818,1758866676483,-480.0,0.00041917,120]
[387788819,1758866676530,-480.0,0.00041917,120]
[387788820,1758866676576,-4563.94,0.00041917,120]
[387788821,1758866676623,-480.0,0.00041917,120]
[387788822,1758866676669,-480.0,0.00041917,30]
[387788823,1758866676715,-480.0,0.00041917,120]
[387788824,1758866676762,-480.0,0.00041917,120]
[387788825,1758866676807,-312.93512214,0.00041917,120]
[387788826,1758866676852,-480.0,0.00041917,120]
[387788827,1758866676979,-480.0,0.00041917,120]
[387788828,1758866677025,-514.17,0.00041917,120]
[387788829,1758866677069,-748.04,0.00041917,120]
[387788830,1758866677114,-876.43,0.00041917,120]
[387788831,1758866677161,-1758.0,0.00041917,120]
[387788832,1758866677208,-1517.0,0.00041917,120]
[387788833,1758866677254,-4290.22,0.00041917,120]
[387788834,1758866677299,-502.82536211,0.00041917,120]
[387788835,1758866677345,-684.52,0.00041917,120]
[387788836,1758866677392,-480.0,0.00041917,120]
[387788837,1758866677443,-1662.06,0.00041917,120]
[387788838,1758866677491,-480.0,0.00041917,120]
[387788839,1758866677538,-557.37,0.00041917,120]
[387788840,1758866677585,-480.0,0.00041917,120]
[387788841,1758866677634,-715.9,0.00041917,120]
[387788842,1758866677681,-331.72007764,0.00041917,120]
[387788843,1758866677730,-480.0,0.00041917,120]
[387788844,1758866677780,-745.27,0.00041917,120]
[387788845,1758866677831,-480.0,0.00041917,120]
[387788846,1758866677881,-480.0,0.00041917,120]
[387788847,1758866677932,-495.56,0.00041917,120]
[387788848,1758866677982,-480.0,0.00041917,120]
[387788849,1758866678027,-487.73798247,0.00041917,120]
[387788850,1758866678072,-480.0,0.00041917,120]
[387788851,1758866678119,-480.0,0.00041917,120]
[387788852,1758866678167,-500.0,0.00041917,120]
[387788853,1758866678215,-354.87923525,0.00041917,120]
[387788854,1758866678260,-186.50078688,0.00041917,120]
[387788855,1758866678306,-520.8274534,0.00041917,120]
[387788856,1758866678353,-480.0,0.00041917,120]
[387788857,1758866678401,-480.0,0.00041917,120]
[387788858,1758866678449,-480.0,0.00041917,120]
[387788859,1758866678495,-437.17884707,0.00041917,120]
[387788860,1758866678541,-413.50854177,0.00041917,120]
[387788861,1758866678588,-509.65287217,0.00041917,120]
[387788862,1758866678633,-480.0,0.00041917,120]
[387788863,1758866678680,-716.75,0.00041917,120]
[387788864,1758866678725,-369.78490824,0.00041917,21]
[387788865,1758866678771,-480.0,0.00041917,120]
[387788866,1758866678823,-480.0,0.00041917,120]
[387788867,1758866678870,-482.18,0.00041917,120]
[387788868,1758866678917,-480.0,0.00041917,120]
[387788869,1758866678977,-3219.78,0.00041917,120]
[387788870,1758866679023,-480.0,0.00041917,120]
[387788871,1758866679067,-480.0,0.00041917,120]
[387788872,1758866679113,-773.83315758,0.00041917,120]
[387788893,1758867032553,-410.0,0.00028995,2]
[387788894,1758867032563,-168.0,0.00029673,2]
[387788895,1758867032572,-1211.0,0.00030007,2]
[387788896,1758867032583,-255.42242204,0.00030008,2]
[387788897,1758867032593,-500.0,0.00030008,2]
[387788898,1758867032603,-500.0,0.00030008,2]
[387788899,1758867032612,-199.0,0.00030008,14]
[387788900,1758867032623,-155.0,0.00030008,2]
[387788901,1758867032633,-300.0,0.00030008,2]
[387788902,1758867032643,-24977.53600438,0.00030009,2]
[387788903,1758867032653,-155.0,0.0003001,2]
[387788904,1758867032662,-1347.7870281,0.00030107,2]
[387788905,1758867032672,-324.36529745,0.0003011,4]
[387788906,1758867032681,-284.66318794,0.0003013,2]
[387788907,1758867032690,-168.0,0.00030144,2]
[387788908,1758867032700,-168.0,0.0003016,2]
[387788909,1758867032710,-150.0,0.00030173,2]
[387788910,1758867032720,-250.0,0.00030173,10]
[387788911,1758867032729,-250.0,0.00030173,10]
[387788912,1758867032739,-250.0,0.00030173,10]
[387788913,1758867032748,-346.712352,0.00030173,10]
[387788915,1758867032757,-168.0,0.00030179,2]
[387788917,1758867032768,-960.58223937,0.000302,2]
[387788919,1758867032777,-159.59642,0.00030322,60]
[387788920,1758867032787,-184.53333109,0.0003034,2]
[387788921,1758867032796,-168.0,0.00030408,2]
[387788922,1758867032806,-159.59642,0.00030471,60]
[387788923,1758867032815,-168.0,0.00030541,2]
[387788924,1758867032824,-488.40202,0.00030546,60]
[387788925,1758867032835,-168.0,0.00030553,2]
[387788926,1758867032844,-168.0,0.00030581,2]
[387788927,1758867032853,-159.59642,0.0003062,60]
[387788928,1758867032863,-2085.45,0.00030676,2]
[387788929,1758867032872,-199.0,0.00030693,15]
[387788930,1758867032881,-159.59642,0.0003077,60]
[387788931,1758867032890,-203.85413,0.00030774,60]
[387788932,1758867032900,-168.0,0.00030818,2]
[387788933,1758867032910,-179.64071856,0.00030869,6]
[387788934,1758867032919,-5624.62945379,0.0003087,7]
[387788935,1758867032931,-610.11298682,0.0003087,7]
[387788936,1758867032956,-417.16503418,0.0003087,7]
[387788937,1758867032974,-1989.31264424,0.0003087,7]
[387788942,1758867038534,-500.0,0.00030007,2]
[387788943,1758867038547,-500.0,0.00030007,2]
[387788944,1758867038557,-500.0,0.00030007,2]
[387788945,1758867038566,-500.0,0.00030007,2]
[387788946,1758867038576,-500.0,0.00030007,2]
[387788947,1758867038587,-500.0,0.00030007,2]
[387788948,1758867038596,-500.0,0.00030007,2]
[387788949,1758867038606,-500.0,0.00030007,2]
[387788950,1758867038617,-500.0,0.00030007,2]
[387788951,1758867038627,-500.0,0.00030007,2]
[387788952,1758867038636,-500.0,0.00030007,2]
[387788953,1758867038645,-500.0,0.00030007,2]
[387788954,1758867038655,-500.0,0.00030007,2]
[387788955,1758867038664,-500.0,0.00030007,2]
[387788956,1758867038674,-500.0,0.00030007,2]
[387788957,1758867038683,-500.0,0.00030007,2]
[387788958,1758867038693,-500.0,0.00030007,2]
[387788959,1758867038702,-500.0,0.00030007,2]
[387788960,1758867038712,-500.0,0.00030007,2]
[387788961,1758867038721,-500.0,0.00030007,2]
[387788962,1758867038730,-500.0,0.00030007,2]
[387788963,1758867038739,-500.0,0.00030007,2]
[387788964,1758867038749,-500.0,0.00030007,2]
[387788965,1758867038759,-500.0,0.00030007,2]
[387788966,1758867038769,-500.0,0.00030007,2]
[387788967,1758867038778,-500.0,0.00030007,2]
[387788968,1758867038788,-500.0,0.00030007,2]
[387788969,1758867038798,-500.0,0.00030007,2]
[387788970,1758867038807,-500.0,0.00030007,2]
[387788971,1758867038816,-500.0,0.00030007,2]
[387788972,1758867038825,-500.0,0.00030007,2]
[387788973,1758867038835,-500.0,0.00030007,2]
[387788974,1758867038844,-500.0,0.00030007,2]
[387788975,1758867038853,-500.0,0.00030007,2]
[387788976,1758867038862,-500.0,0.00030007,2]
[387788977,1758867038872,-500.0,0.00030007,2]
[387788978,1758867038881,-500.0,0.00030007,2]
[387788979,1758867038890,-500.0,0.00030007,2]
[387788980,1758867038900,-500.0,0.00030007,2]
[387788981,1758867038909,-500.0,0.00030007,2]
[387788982,1758867038919,-500.0,0.00030007,2]
[387788983,1758867038929,-500.0,0.00030007,2]
[387788984,1758867038938,-500.0,0.00030007,2]
[387788985,1758867038947,-500.0,0.00030007,2]
[387788986,1758867038957,-500.0,0.00030007,2]
[387788987,1758867038966,-500.0,0.00030007,2]
[387788988,1758867038975,-500.0,0.00030007,2]
[387788989,1758867038985,-500.0,0.00030007,2]
[387788990,1758867038994,-500.0,0.00030007,2]
[387788991,1758867039003,-500.0,0.00030007,2]
[387788992,1758867039013,-500.0,0.00030007,2]
[387788993,1758867039024,-500.0,0.00030007,2]
[387788994,1758867039034,-500.0,0.00030007,2]
[387788995,1758867039045,-500.0,0.00030007,2]
[387788996,1758867039054,-500.0,0.00030007,2]
[387788997,1758867039063,-500.0,0.00030007,2]
[387788998,1758867039073,-500.0,0.00030007,2]
[387788999,1758867039082,-500.0,0.00030007,2]
[387789000,1758867039092,-6848.77988097,0.0003087,7]
[387789001,1758867039103,-488.40202,0.00030919,60]
[387789002,1758867039113,-302.92744378,0.0003099,2]
[387789003,1758867039122,-191.62,0.0003111,10]
[387789004,1758867039132,-30000.0,0.0003112,2]
[387789005,1758867039142,-214.21584045,0.00031173,5]
[387789006,1758867039151,-500.0,0.00031173,5]
[387789007,1758867039161,-6308.0,0.00031173,120]
[387789008,1758867039170,-488.40202,0.00031292,60]
[387789009,1758867039180,-199.0,0.00031378,16]
[387789010,1758867039190,-488.40202,0.00031665,60]
[387789011,1758867039199,-500.0,0.0003184,5]
[387789012,1758867039208,-500.0,0.0003184,5]
[387789013,1758867039218,-509.54682312,0.0003184,5]
[387789014,1758867039228,-38364.6167796,0.0003189,2]
[387789015,1758867039237,-5550.2475294,0.0003189,2]
[387789016,1758867039248,-22523.60077838,0.000319,2]
[387789017,1758867039257,-410.0,0.00031995,2]
[387789018,1758867039267,-255.26400189,0.00032,120]
[387789019,1758867039277,-1229.69399284,0.00032,120]
[387789020,1758867039287,-747.30242768,0.00032,120]
[387789021,1758867039297,-247.04,0.00032,120]
[387789022,1758867039307,-778.82476366,0.00032,120]
[387789023,1758867039316,-174.64797888,0.00032,120]
[387789024,1758867039326,-160.0,0.00032011,2]
[387789025,1758867039336,-297.69433756,0.00032063,17]
[387789026,1758867039345,-1229.69399284,0.000323,120]
[387789027,1758867039355,-747.30242768,0.000323,120]
[387789028,1758867039368,-247.04,0.000323,120]
[387789029,1758867039378,-778.82476366,0.000323,120]
[387789030,1758867039388,-174.64797888,0.000323,120]
[387789031,1758867039397,-151.0,0.000323,60]
[387789032,1758867039406,-151.0,0.000323,2]
[387789033,1758867039416,-260.0,0.00032559,2]
[387789034,1758867039426,-151.0,0.00032574,60]
[387789035,1758867039436,-151.0,0.00032574,2]
[387789036,1758867039452,-282.65,0.0003259,3]
[387789037,1758867039466,-847.96,0.0003259,3]
[387789038,1758867039476,-1229.69399284,0.000326,120]
[387789039,1758867039485,-747.30242768,0.000326,120]
[387789040,1758867039495,-247.04,0.000326,120]
[387789041,1758867039504,-778.82476366,0.000326,120]
[387789042,1758867039515,-174.64797888,0.000326,120]
[387789043,1758867039526,-198.0,0.00032848,60]
[387789044,1758867039537,-198.0,0.00032848,2]
[387789045,1758867039549,-38364.6167796,0.00032867,2]
[387789046,1758867039559,-5550.2475294,0.00032867,2]
[387789047,1758867039568,-565.29,0.00032867,3]
[387789048,1758867039579,-500.0,0.00032873,5]
[387789049,1758867039588,-500.0,0.00032876,120]
[387789050,1758867039599,-167.94438443,0.00032877,2]
[387789051,1758867039608,-1500.0,0.00032877,2]
[387789052,1758867039618,-500.0,0.00032877,7]
[387789053,1758867039629,-500.0,0.00032877,7]
[387789054,1758867039639,-422.0283302,0.00032877,7]
[387789055,1758867039649,-500.0,0.00032877,7]
[387789056,1758867039658,-500.0,0.00032877,7]
[387789057,1758867039668,-500.0,0.00032877,7]
[387789058,1758867039677,-500.0,0.00032877,7]
[387789059,1758867039687,-500.0,0.00032877,7]
[387789060,1758867039696,-500.0,0.00032877,7]
[387789061,1758867039706,-500.0,0.00032877,7]
[387789062,1758867039716,-500.0,0.00032877,7]
[387789063,1758867039726,-500.0,0.00032877,7]
[387789064,1758867039736,-500.0,0.00032877,7]
[387789065,1758867039746,-1130.58,0.0003297,3]
[387789066,1758867039756,-11450.2770203,0.00033,2]
[387789067,1758867039766,-1229.69399284,0.00033,120]
[387789068,1758867039776,-747.30242768,0.00033,120]
[387789069,1758867039786,-247.04,0.00033,120]
[387789070,1758867039795,-778.82476366,0.00033,120]
[387789071,1758867039805,-174.64797888,0.00033,120]
[387789072,1758867039814,-360.0,0.00033107,2]
[387789073,1758867039824,-165.3173583,0.000332,117]
[387789074,1758867039834,-1229.69399284,0.000333,120]
[387789075,1758867039843,-747.30242768,0.000333,120]
[387789076,1758867039853,-247.04,0.000333,120]
[387789077,1758867039864,-778.82476366,0.000333,120]
[387789078,1758867039874,-1000.0,0.00033421,5]
[387789079,1758867039883,-201.81582116,0.000335,2]
[387789080,1758867039893,-460.0,0.00033655,2]
[387789081,1758867039903,-500.0,0.00033698,120]
[387789082,1758867039913,-565.3,0.0003396,3]
[387789083,1758867039923,-1500.0,0.00033968,5]
[387789084,1758867039932,-555.30916772,0.00034203,2]
[387789085,1758867039942,-1130.58,0.00034237,3]
[387789086,1758867039951,-2261.16,0.0003434,3]
[387789087,1758867039961,-504.9478486,0.00034516,5]
[387789088,1758867039971,-500.0,0.0003452,120]
[387789089,1758867039981,-410.0,0.00034995,2]
[387789090,1758867039991,-180.05675,0.00035,5]
[387789091,1758867040001,-180.05675,0.00035,5]
[387789092,1758867040011,-500.0,0.00035342,120]
[387789093,1758867040021,-500.0,0.00035519,5]
[387789094,1758867040031,-165.31735828,0.00036031,120]
[387789095,1758867040041,-500.0,0.00036164,120]
[387789096,1758867040050,-500.0,0.00036986,120]
[387789097,1758867040060,-3000.0,0.00037,3]
[387789098,1758867040069,-503.17496598,0.0003721,5]
[387789099,1758867040079,-38364.6167796,0.0003741,3]
[387789100,1758867040089,-5550.2475294,0.0003741,3]
[387789102,1758867040098,-38364.6167796,0.0003742,3]
[387789104,1758867040107,-5550.2475294,0.0003742,3]
[387789105,1758867040117,-115093.850339,0.0003743,3]
[387789106,1758867040127,-88803.9604704,0.0003743,3]
[387789107,1758867040137,-1000000.0,0.0003744,7]
[387789108,1758867040148,-500.0,0.00037473,5]
[387789109,1758867040158,-500.0,0.00037473,5]
[387789110,1758867040168,-502.55722864,0.00037473,5]
[387789111,1758867040177,-504.78324607,0.00037473,5]
[387789112,1758867040188,-342.52,0.000375,14]
[387789113,1758867040197,-500.0,0.00037808,120]
[387789114,1758867040207,-410.0,0.00037995,2]
[387789116,1758867040216,-1007.52747064,0.00038021,5]
[387789118,1758867040226,-1018.8018025,0.00038021,5]
[387789120,1758867040236,-521.58015821,0.00038356,3]
[387789122,1758867040245,-480.0,0.00038356,7]
[387789124,1758867040255,-480.0,0.00038356,7]
[387789126,1758867040264,-480.0,0.00038356,12]
[387789128,1758867040275,-500.0,0.00038356,14]
[387789130,1758867040285,-480.0,0.00038356,30]
[387789132,1758867040295,-480.0,0.00038356,30]
[387789134,1758867040304,-480.0,0.00038356,30]
[387789136,1758867040315,-480.0,0.00038356,30]
[387789138,1758867040325,-480.0,0.00038356,30]
[387789140,1758867040334,-480.0,0.00038356,30]
[387789142,1758867040346,-554.58264955,0.00038356,30]
[387789144,1758867040356,-480.0,0.00038356,30]
[387789146,1758867040365,-480.0,0.00038356,30]
[387789148,1758867040375,-480.0,0.00038356,30]
[387789150,1758867040384,-480.0,0.00038356,30]
[387789152,1758867040395,-480.0,0.00038356,30]
[387789154,1758867040405,-432.38913171,0.00038356,30]
[387789156,1758867040415,-480.0,0.00038356,30]
[387789158,1758867040425,-480.0,0.00038356,30]
[387789160,1758867040441,-480.0,0.00038356,30]
[387789162,1758867040451,-480.0,0.00038356,30]
[387789164,1758867040461,-480.0,0.00038356,30]
[387789166,1758867040471,-480.0,0.00038356,30]
[387789168,1758867040481,-480.0,0.00038356,30]
[387789170,1758867040491,-500.0,0.00038356,2]
[387789173,1758867040500,-500.0,0.00038356,2]
[387789175,1758867040511,-519.06154278,0.00038356,2]
[387789177,1758867040520,-480.0,0.00038356,30]
[387789179,1758867040530,-480.0,0.00038356,30]
[387789181,1758867040543,-480.0,0.00038356,30]
[387789183,1758867040553,-480.0,0.00038356,3]
[387789184,1758867040563,-480.0,0.00038356,30]
[387789186,1758867040572,-480.0,0.00038356,30]
[387789188,1758867040583,-480.0,0.00038356,30]
[387789190,1758867040593,-355.67017684,0.00038356,30]
[387789192,1758867040602,-480.0,0.00038356,30]
[387789194,1758867040612,-480.0,0.00038356,30]
[387789196,1758867040622,-480.0,0.00038356,30]
[387789198,1758867040631,-480.0,0.00038356,7]
[387789200,1758867040640,-480.0,0.00038356,30]
[387789202,1758867040650,-499.37071965,0.00038356,30]
[387789204,1758867040659,-480.0,0.00038356,30]
[387789206,1758867040669,-480.0,0.00038356,14]
[387789208,1758867040678,-480.0,0.00038356,30]
[387789210,1758867040687,-692.38,0.00038356,30]
[387789212,1758867040697,-480.0,0.00038356,30]
[387789215,1758867040707,-360.5360686,0.00038356,30]
[387789216,1758867040716,-480.0,0.00038356,30]
[387789219,1758867040726,-480.0,0.00038356,30]
[387789220,1758867040736,-1341.57,0.00038356,30]
[387789223,1758867040747,-480.0,0.00038356,30]
[387789225,1758867040756,-480.0,0.00038356,30]
[387789227,1758867040765,-480.0,0.00038356,30]
[387789229,1758867040775,-480.0,0.00038356,30]
[387789231,1758867040785,-480.0,0.00038356,30]
[387789233,1758867040794,-480.0,0.00038356,30]
[387789235,1758867040804,-480.0,0.00038356,30]
[387789237,1758867040815,-480.0,0.00038356,30]
[387789239,1758867040824,-481.70745875,0.00038356,30]
[387789241,1758867040834,-480.0,0.00038356,30]
[387789243,1758867040844,-480.0,0.00038356,30]
[387789245,1758867040854,-480.0,0.00038356,30]
[387789247,1758867040863,-632.08,0.00038356,30]
[387789249,1758867040873,-692.53,0.00038356,30]
[387789251,1758867040882,-732.5,0.00038356,30]
[387789253,1758867040891,-480.0,0.00038356,30]
[387789255,1758867040901,-1787.59,0.00038356,30]
[387789257,1758867040911,-480.0,0.00038356,30]
[387789259,1758867040921,-480.0,0.00038356,30]
[387789261,1758867040931,-480.0,0.00038356,30]
[387789263,1758867040940,-480.0,0.00038356,30]
[387789265,1758867040950,-480.0,0.00038356,30]
[387789267,1758867040960,-480.0,0.00038356,30]
[387789269,1758867040970,-480.0,0.00038356,30]
[387789271,1758867040979,-480.0,0.00038356,30]
[387789273,1758867040988,-480.0,0.00038356,30]
[387789275,1758867040998,-1500.0,0.00038356,2]
[387789277,1758867041007,-481.41066611,0.0003863,7]
[387789279,1758867041016,-481.56733072,0.0003863,7]
[387789281,1758867041027,-480.42624066,0.0003863,12]
[387789283,1758867041036,-503.22450954,0.0003863,14]
[387789285,1758867041047,-482.33172548,0.0003863,30]
[387789287,1758867041057,-480.0,0.0003863,30]
[387789289,1758867041066,-480.0,0.0003863,30]
[387789291,1758867041076,-480.0,0.0003863,30]
[387789293,1758867041085,-480.0,0.0003863,30]
[387789295,1758867041095,-480.76343061,0.0003863,30]
[387789297,1758867041104,-480.0,0.0003863,30]
[387789299,1758867041114,-480.0,0.0003863,30]
[387789301,1758867041124,-480.0,0.0003863,30]
[387789312,1758867041223,-480.0,0.0003863,30]
[387789315,1758867041236,-480.0,0.0003863,30]
[387789317,1758867041246,-480.0,0.0003863,30]
[387789319,1758867041255,-480.0,0.0003863,3]
[387789321,1758867041264,-480.0,0.0003863,30]
[387789323,1758867041275,-480.0,0.0003863,30]
[387789325,1758867041285,-480.0,0.0003863,30]
[387789326,1758867041294,-480.0,0.0003863,30]
[387789327,1758867041304,-480.0,0.0003863,30]
[387789328,1758867041313,-570.08180673,0.0003863,30]
[387789329,1758867041323,-480.0,0.0003863,7]
[387789330,1758867041332,-480.0,0.0003863,30]
[387789331,1758867041343,-480.0,0.0003863,30]
[387789333,1758867041352,-480.0,0.0003863,14]
[387789334,1758867041362,-480.0,0.0003863,30]
[387789335,1758867041371,-692.38,0.0003863,30]
[387789336,1758867041381,-480.0,0.0003863,30]
[387789338,1758867041392,-480.0,0.0003863,30]
[387789339,1758867041402,-480.0,0.0003863,30]
[387789340,1758867041411,-1341.57,0.0003863,30]
[387789341,1758867041421,-480.0,0.0003863,30]
[387789342,1758867041431,-480.0,0.0003863,30]
[387789343,1758867041441,-480.0,0.0003863,30]
[387789344,1758867041450,-480.0,0.0003863,30]
[387789345,1758867041460,-480.0,0.0003863,30]
[387789346,1758867041470,-480.0,0.0003863,30]
[387789347,1758867041480,-480.0,0.0003863,30]
[387789348,1758867041489,-480.0,0.0003863,30]
[387789349,1758867041499,-480.0,0.0003863,30]
[387789350,1758867041508,-480.0,0.0003863,30]
[387789351,1758867041518,-632.08,0.0003863,30]
[387789352,1758867041529,-692.53,0.0003863,30]
[387789353,1758867041539,-500.0,0.0003863,120]
[387789354,1758867041553,-732.5,0.0003863,30]
[387789355,1758867041563,-480.0,0.0003863,30]
[387789356,1758867041572,-1787.59,0.0003863,30]
[387789357,1758867041582,-480.0,0.0003863,30]
[387789358,1758867041592,-480.0,0.0003863,30]
[387789359,1758867041601,-480.0,0.0003863,30]
[387789360,1758867041611,-480.0,0.0003863,30]
[387789361,1758867041621,-480.0,0.0003863,30]
[387789362,1758867041630,-480.0,0.0003863,30]
[387789363,1758867041640,-480.0,0.0003863,30]
[387789364,1758867041649,-480.0,0.00038904,30]
[387789365,1758867041659,-480.0,0.00038904,30]
[387789366,1758867041668,-480.0,0.00038904,30]
[387789367,1758867041677,-480.0,0.00038904,30]
[387789368,1758867041686,-480.0,0.00038904,30]
[387789369,1758867041695,-480.0,0.00038904,30]
[387789370,1758867041705,-480.0,0.00038904,30]
[387789371,1758867041714,-480.0,0.00038904,30]
[387789372,1758867041723,-480.0,0.00038904,30]
[387789373,1758867041732,-480.0,0.00038904,30]
[387789374,1758867041742,-480.0,0.00038904,3]
[387789375,1758867041751,-480.0,0.00038904,30]
[387789376,1758867041760,-480.0,0.00038904,30]
[387789377,1758867041769,-483.71589346,0.00038904,30]
[387789378,1758867041778,-480.0,0.00038904,30]
[387789379,1758867041787,-480.0,0.00038904,30]
[387789380,1758867041797,-480.0,0.00038904,7]
[387789381,1758867041806,-480.0,0.00038904,30]
[387789382,1758867041816,-480.0,0.00038904,30]
[387789383,1758867041825,-481.0813789,0.00038904,14]
[387789384,1758867041834,-480.0,0.00038904,30]
[387789385,1758867041843,-692.38,0.00038904,30]
[387789386,1758867041852,-480.0,0.00038904,30]
[387789387,1758867041862,-480.0,0.00038904,30]
[387789388,1758867041871,-480.0,0.00038904,30]
[387789389,1758867041881,-1341.57,0.00038904,30]
[387789390,1758867041891,-480.0,0.00038904,30]
[387789391,1758867041901,-480.0,0.00038904,30]
[387789392,1758867041910,-480.0,0.00038904,30]
[387789393,1758867041919,-480.0,0.00038904,30]
[387789394,1758867041929,-480.0,0.00038904,30]
[387789395,1758867041938,-480.0,0.00038904,30]
[387789396,1758867041948,-480.0,0.00038904,30]
[387789397,1758867041958,-480.0,0.00038904,30]
[387789398,1758867041967,-480.0,0.00038904,30]
[387789399,1758867041978,-584.18832332,0.00038904,30]
[387789400,1758867041988,-632.08,0.00038904,30]
[387789401,1758867041999,-692.53,0.00038904,30]
[387789402,1758867042008,-732.5,0.00038904,30]
[387789403,1758867042017,-480.0,0.00038904,30]
[387789404,1758867042028,-1787.59,0.00038904,30]
[387789405,1758867042038,-480.0,0.00038904,30]
[387789406,1758867042047,-480.0,0.00038904,30]
[387789407,1758867042057,-604.16955576,0.00038904,30]
[387789408,1758867042066,-480.0,0.00038904,30]
[387789409,1758867042077,-480.0,0.00038904,30]
[387789410,1758867042086,-480.0,0.00038904,30]
[387789411,1758867042095,-480.0,0.00038904,30]
[387789412,1758867042104,-500.0,0.0003895,5]
[387789413,1758867042114,-6000.0,0.00039,60]
[387789414,1758867042124,-480.0,0.00039178,30]
[387789415,1758867042133,-480.0,0.00039178,30]
[387789416,1758867042143,-466.39855805,0.00039178,30]
[387789417,1758867042153,-480.0,0.00039178,30]
[387789418,1758867042163,-480.0,0.00039178,30]
[387789419,1758867042172,-480.0,0.00039178,30]
[387789420,1758867042182,-480.0,0.00039178,30]
[387789421,1758867042191,-480.0,0.00039178,30]
[387789422,1758867042200,-480.0,0.00039178,30]
[387789423,1758867042210,-480.0,0.00039178,30]
[387789424,1758867042219,-480.0,0.00039178,3]
[387789425,1758867042228,-480.0,0.00039178,30]
[387789426,1758867042237,-480.0,0.00039178,30]
[387789427,1758867042247,-480.0,0.00039178,30]
[387789428,1758867042256,-480.0,0.00039178,30]
[387789429,1758867042272,-485.72988585,0.00039178,7]
[387789430,1758867042283,-480.0,0.00039178,30]
[387789431,1758867042292,-480.0,0.00039178,30]
[387789432,1758867042303,-197.6885894,0.00039178,30]
[387789433,1758867042312,-692.38,0.00039178,30]